[Event "Titled Tuesday Blitz April 25 Early 2023"]
[White "Dixit, Nikhil"]
[Black "Javakhadze, Zurab"]
[WhiteFideId "5059534"]
[BlackFideId "13603647"]
[WhiteElo "2207"]
[BlackElo "2381"]
[Result "1-0"]
[Round "05"]
[TimeControl "180+2"]
[Date "2023.04.25"]
[WhiteClock "0:00:32"]
[BlackClock "0:00:03"]

1. e4 {[%clk 0:03:00]}  e5 {[%clk 0:02:56]} 2. Nf3 {[%clk 0:02:48]}  Nc6 {[%clk 0:02:56]} 3. Nc3 {[%clk 0:02:48]}  Nf6 {[%clk 0:02:56]} 4. d4 {[%clk 0:02:47]}  exd4 {[%clk 0:02:57]} 5. Nxd4 {[%clk 0:02:48]}  Bb4 {[%clk 0:02:57]} 6. Nxc6 {[%clk 0:02:49]}  bxc6 {[%clk 0:02:57]} 7. Bd3 {[%clk 0:02:49]}  d5 {[%clk 0:02:58]} 8. exd5 {[%clk 0:02:50]}  O-O {[%clk 0:02:58]} 9. O-O {[%clk 0:02:51]}  cxd5 {[%clk 0:02:59]} 10. Bg5 {[%clk 0:02:50]}  c6 {[%clk 0:02:59]} 11. Qf3 {[%clk 0:02:50]}  h6 {[%clk 0:02:59]} 12. Bxf6 {[%clk 0:02:50]}  Qxf6 {[%clk 0:03:00]} 13. Qxf6 {[%clk 0:02:50]}  gxf6 {[%clk 0:03:01]} 14. Nd1 {[%clk 0:02:51]}  Re8 {[%clk 0:02:56]} 15. Ne3 {[%clk 0:02:50]}  Re5 {[%clk 0:02:56]} 16. Rad1 {[%clk 0:02:37]}  a5 {[%clk 0:02:34]} 17. a4 {[%clk 0:02:35]}  Ra7 {[%clk 0:02:32]} 18. h3 {[%clk 0:02:28]}  h5 {[%clk 0:02:27]} 19. Be2 {[%clk 0:02:18]}  Bc5 {[%clk 0:02:20]} 20. Bf3 {[%clk 0:02:11]}  Rb7 {[%clk 0:01:54]} 21. b3 {[%clk 0:02:09]}  Rb4 {[%clk 0:01:49]} 22. Nc4 {[%clk 0:01:51]}  Re6 {[%clk 0:01:25]} 23. Nxa5 {[%clk 0:01:24]}  Bb6 {[%clk 0:00:48]} 24. c3 {[%clk 0:01:22]}  Rf4 {[%clk 0:00:47]} 25. b4 {[%clk 0:01:21]}  Bxa5 {[%clk 0:00:45]} 26. bxa5 {[%clk 0:01:20]}  Ba6 {[%clk 0:00:45]} 27. Rfe1 {[%clk 0:01:13]}  Rxa4 {[%clk 0:00:45]} 28. Bxh5 {[%clk 0:01:06]}  Rxa5 {[%clk 0:00:42]} 29. Bg4 {[%clk 0:01:03]}  Re5 {[%clk 0:00:35]} 30. f4 {[%clk 0:00:58]}  Rxe1+ {[%clk 0:00:30]} 31. Rxe1 {[%clk 0:00:58]}  Ra3 {[%clk 0:00:27]} 32. Re3 {[%clk 0:00:58]}  Kg7 {[%clk 0:00:22]} 33. Kf2 {[%clk 0:00:56]}  Ra2+ {[%clk 0:00:19]} 34. Kg1 {[%clk 0:00:52]}  Rc2 {[%clk 0:00:18]} 35. Rg3 {[%clk 0:00:52]}  Kf8 {[%clk 0:00:17]} 36. Bf5 {[%clk 0:00:48]}  Rc1+ {[%clk 0:00:15]} 37. Kh2 {[%clk 0:00:49]}  Rf1 {[%clk 0:00:15]} 38. Rg4 {[%clk 0:00:44]}  Be2 {[%clk 0:00:12]} 39. Rh4 {[%clk 0:00:44]}  c5 {[%clk 0:00:11]} 40. Rh8+ {[%clk 0:00:35]}  Ke7 {[%clk 0:00:09]} 41. Kg3 {[%clk 0:00:34]}  Rc1 {[%clk 0:00:08]} 42. h4 {[%clk 0:00:33]}  Rxc3+ {[%clk 0:00:08]} 43. Kf2 {[%clk 0:00:33]}  Bd1 {[%clk 0:00:05]} 44. h5 {[%clk 0:00:34]}  Bxh5 {[%clk 0:00:02]} 45. Rxh5 {[%clk 0:00:34]}  d4 {[%clk 0:00:01]} 46. Rh3 {[%clk 0:00:34]}  Rc4 {[%clk 0:00:01]} 47. Ra3 {[%clk 0:00:34]}  Kd6 {[%clk 0:00:01]} 48. Ra6+ {[%clk 0:00:33]}  Kd5 {[%clk 0:00:02]} 49. Rxf6 {[%clk 0:00:33]}  Rb4 {[%clk 0:00:02]} 50. Rxf7 {[%clk 0:00:32]}  Rb2+ {[%clk 0:00:03]} 51. Kf3 {[%clk 0:00:33]}  Kc4 {[%clk 0:00:03]} 52. Rd7 {[%clk 0:00:32]}  Kc3 {[%clk 0:00:03]} 53. g4 {[%clk 0:00:32]}  c4 {[%clk 0:00:04]} 54. g5 {[%clk 0:00:32]}  d3 {[%clk 0:00:02]} 55. g6 {[%clk 0:00:32]}  d2 {[%clk 0:00:02]} 56. g7 {[%clk 0:00:33]}  Rb8 {[%clk 0:00:03]} 57. Be6 {[%clk 0:00:32]}  Kc2 {[%clk 0:00:03]} 58. Bxc4 {[%clk 0:00:32]} 1-0


[Site "https://www.chess.com"]

[Event "Titled Tuesday Blitz April 25 Early 2023"]
[White "Tactrics"]
[Black "feuervogel1000000"]
[WhiteElo "2948"]
[BlackElo "2425"]
[Result "1-0"]
[Round "05"]
[TimeControl "180+2"]
[Date "2023.04.25"]
[WhiteClock "0:00:10"]
[BlackClock "0:00:04"]

1. e4 {[%clk 0:02:56]}  e5 {[%clk 0:02:58]} 2. Nf3 {[%clk 0:02:55]}  Nc6 {[%clk 0:02:58]} 3. Nc3 {[%clk 0:02:55]}  Nf6 {[%clk 0:02:58]} 4. d4 {[%clk 0:02:56]}  exd4 {[%clk 0:02:58]} 5. Nxd4 {[%clk 0:02:57]}  Bb4 {[%clk 0:02:57]} 6. Nxc6 {[%clk 0:02:58]}  bxc6 {[%clk 0:02:57]} 7. Bd3 {[%clk 0:02:58]}  O-O {[%clk 0:02:57]} 8. O-O {[%clk 0:02:58]}  d5 {[%clk 0:02:56]} 9. exd5 {[%clk 0:02:59]}  cxd5 {[%clk 0:02:56]} 10. h3 {[%clk 0:02:59]}  c6 {[%clk 0:02:55]} 11. Qf3 {[%clk 0:03:00]}  Re8 {[%clk 0:02:53]} 12. Bf4 {[%clk 0:03:00]}  Bd6 {[%clk 0:02:52]} 13. Rad1 {[%clk 0:02:58]}  Rb8 {[%clk 0:02:50]} 14. b3 {[%clk 0:02:58]}  Bxf4 {[%clk 0:02:44]} 15. Qxf4 {[%clk 0:02:58]}  Be6 {[%clk 0:02:45]} 16. Ne2 {[%clk 0:02:48]}  c5 {[%clk 0:02:44]} 17. Qf3 {[%clk 0:02:27]}  Qa5 {[%clk 0:02:35]} 18. Nf4 {[%clk 0:02:24]}  c4 {[%clk 0:02:00]} 19. Be2 {[%clk 0:02:06]}  Qc5 {[%clk 0:01:53]} 20. Rfe1 {[%clk 0:01:51]}  cxb3 {[%clk 0:00:49]} 21. cxb3 {[%clk 0:01:51]}  Ne4 {[%clk 0:00:50]} 22. Bf1 {[%clk 0:01:37]}  Rbd8 {[%clk 0:00:45]} 23. Qe3 {[%clk 0:01:31]}  Qa5 {[%clk 0:00:19]} 24. Ra1 {[%clk 0:01:12]}  Bc8 {[%clk 0:00:14]} 25. Qd4 {[%clk 0:01:10]}  Nf6 {[%clk 0:00:07]} 26. b4 {[%clk 0:00:54]}  Qb6 {[%clk 0:00:05]} 27. Rxe8+ {[%clk 0:00:49]}  Rxe8 {[%clk 0:00:05]} 28. Qxb6 {[%clk 0:00:44]}  axb6 {[%clk 0:00:06]} 29. f3 {[%clk 0:00:44]}  g5 {[%clk 0:00:04]} 30. Ne2 {[%clk 0:00:42]}  Bf5 {[%clk 0:00:04]} 31. Nd4 {[%clk 0:00:42]}  Bd7 {[%clk 0:00:05]} 32. a4 {[%clk 0:00:41]}  Ra8 {[%clk 0:00:05]} 33. a5 {[%clk 0:00:42]}  bxa5 {[%clk 0:00:06]} 34. Rxa5 {[%clk 0:00:39]}  Rb8 {[%clk 0:00:06]} 35. b5 {[%clk 0:00:37]}  Kf8 {[%clk 0:00:06]} 36. Ra6 {[%clk 0:00:35]}  Ke7 {[%clk 0:00:07]} 37. Kf2 {[%clk 0:00:32]}  Ne8 {[%clk 0:00:07]} 38. Ra7 {[%clk 0:00:28]}  Kd8 {[%clk 0:00:04]} 39. Bd3 {[%clk 0:00:25]}  Nc7 {[%clk 0:00:04]} 40. Ra5 {[%clk 0:00:15]}  h6 {[%clk 0:00:03]} 41. Ke3 {[%clk 0:00:15]}  Ke7 {[%clk 0:00:04]} 42. Kd2 {[%clk 0:00:14]}  Kd6 {[%clk 0:00:04]} 43. Kc3 {[%clk 0:00:15]}  Kc5 {[%clk 0:00:04]} 44. Ra7 {[%clk 0:00:10]}  Kb6 {[%clk 0:00:05]} 45. Ra1 {[%clk 0:00:10]}  Nxb5+ {[%clk 0:00:04]} 46. Nxb5 {[%clk 0:00:08]}  Bxb5 {[%clk 0:00:05]} 47. Bxb5 {[%clk 0:00:09]}  Rc8+ {[%clk 0:00:03]} 48. Kb4 {[%clk 0:00:09]}  Rc2 {[%clk 0:00:04]} 49. Ra6+ {[%clk 0:00:08]}  Kb7 {[%clk 0:00:04]} 50. Rxh6 {[%clk 0:00:09]}  Rxg2 {[%clk 0:00:04]} 51. Bc6+ {[%clk 0:00:09]}  Kc7 {[%clk 0:00:04]} 52. Bxd5 {[%clk 0:00:10]}  f5 {[%clk 0:00:03]} 53. Kc5 {[%clk 0:00:09]}  Rg3 {[%clk 0:00:03]} 54. Rh7+ {[%clk 0:00:09]}  Kd8 {[%clk 0:00:04]} 55. Kd6 {[%clk 0:00:10]}  Ke8 {[%clk 0:00:04]} 56. Rh8# {[%clk 0:00:10]} 1-0


[Site "https://www.chess.com"]

[Event "Titled Tuesday Blitz April 25 Early 2023"]
[White "Kim, Sergey"]
[Black "Grigoriants, Sergey"]
[WhiteFideId "13700570"]
[BlackFideId "4130804"]
[WhiteElo "2628"]
[BlackElo "2502"]
[Result "1-0"]
[Round "05"]
[TimeControl "180+2"]
[Date "2023.04.25"]
[WhiteClock "0:00:28"]
[BlackClock "0:00:02"]

1. d4 {[%clk 0:03:00]}  Nf6 {[%clk 0:02:48]} 2. c4 {[%clk 0:03:01]}  g6 {[%clk 0:02:47]} 3. Nc3 {[%clk 0:03:01]}  d5 {[%clk 0:02:47]} 4. cxd5 {[%clk 0:03:00]}  Nxd5 {[%clk 0:02:48]} 5. e4 {[%clk 0:03:01]}  Nxc3 {[%clk 0:02:48]} 6. bxc3 {[%clk 0:03:02]}  Bg7 {[%clk 0:02:49]} 7. Bc4 {[%clk 0:03:02]}  c5 {[%clk 0:02:49]} 8. Ne2 {[%clk 0:03:02]}  O-O {[%clk 0:02:49]} 9. O-O {[%clk 0:03:03]}  Nc6 {[%clk 0:02:50]} 10. Be3 {[%clk 0:03:02]}  b6 {[%clk 0:02:48]} 11. Qd2 {[%clk 0:03:02]}  Bb7 {[%clk 0:02:45]} 12. Rad1 {[%clk 0:03:01]}  Na5 {[%clk 0:02:44]} 13. Bd3 {[%clk 0:03:00]}  cxd4 {[%clk 0:02:45]} 14. cxd4 {[%clk 0:02:59]}  Rc8 {[%clk 0:02:44]} 15. Bh6 {[%clk 0:02:59]}  Qd6 {[%clk 0:02:40]} 16. Bxg7 {[%clk 0:02:57]}  Kxg7 {[%clk 0:02:40]} 17. Qg5 {[%clk 0:02:53]}  h6 {[%clk 0:02:30]} 18. Qg4 {[%clk 0:02:49]}  h5 {[%clk 0:02:18]} 19. Qg5 {[%clk 0:02:45]}  Qf6 {[%clk 0:02:19]} 20. Qg3 {[%clk 0:02:41]}  Rfd8 {[%clk 0:01:34]} 21. e5 {[%clk 0:02:40]}  Qc6 {[%clk 0:01:34]} 22. h4 {[%clk 0:01:57]}  Nc4 {[%clk 0:01:33]} 23. Rc1 {[%clk 0:01:49]}  b5 {[%clk 0:01:33]} 24. Bxc4 {[%clk 0:01:44]}  bxc4 {[%clk 0:01:33]} 25. Rfd1 {[%clk 0:01:44]}  Qe4 {[%clk 0:01:27]} 26. Nc3 {[%clk 0:01:43]}  Qf5 {[%clk 0:01:24]} 27. Rd2 {[%clk 0:01:23]}  Be4 {[%clk 0:01:20]} 28. d5 {[%clk 0:01:08]}  Bd3 {[%clk 0:01:16]} 29. Re1 {[%clk 0:01:05]}  Rc5 {[%clk 0:01:13]} 30. Re3 {[%clk 0:01:04]}  Rcxd5 {[%clk 0:00:56]} 31. Nxd5 {[%clk 0:01:03]}  Rxd5 {[%clk 0:00:57]} 32. Rd1 {[%clk 0:00:58]}  Rb5 {[%clk 0:00:52]} 33. Rc1 {[%clk 0:00:53]}  a5 {[%clk 0:00:40]} 34. e6 {[%clk 0:00:42]}  fxe6 {[%clk 0:00:23]} 35. Rce1 {[%clk 0:00:33]}  Qg4 {[%clk 0:00:02]} 36. Qc7 {[%clk 0:00:28]} 1-0


[Site "https://www.chess.com"]

[Event "Titled Tuesday Blitz April 25 Early 2023"]
[White "Hamitevici, Vladimir"]
[Black "Svane, Frederik"]
[WhiteFideId "13902393"]
[BlackFideId "12923044"]
[WhiteElo "2401"]
[BlackElo "2502"]
[Result "0-1"]
[Round "05"]
[TimeControl "180+2"]
[Date "2023.04.25"]
[WhiteClock "0:00:14"]
[BlackClock "0:01:13"]

1. d4 {[%clk 0:03:00]}  Nf6 {[%clk 0:03:00]} 2. Bf4 {[%clk 0:03:00]}  b6 {[%clk 0:02:55]} 3. e3 {[%clk 0:02:59]}  Bb7 {[%clk 0:02:55]} 4. c4 {[%clk 0:02:49]}  e6 {[%clk 0:02:55]} 5. Nc3 {[%clk 0:02:48]}  Bb4 {[%clk 0:02:55]} 6. h3 {[%clk 0:02:26]}  O-O {[%clk 0:02:55]} 7. Rc1 {[%clk 0:02:20]}  Ne4 {[%clk 0:02:45]} 8. Ne2 {[%clk 0:02:17]}  d6 {[%clk 0:02:43]} 9. a3 {[%clk 0:02:14]}  Bxc3+ {[%clk 0:02:41]} 10. Nxc3 {[%clk 0:02:15]}  Nd7 {[%clk 0:02:41]} 11. Nxe4 {[%clk 0:02:13]}  Bxe4 {[%clk 0:02:41]} 12. f3 {[%clk 0:02:02]}  Bb7 {[%clk 0:02:40]} 13. h4 {[%clk 0:02:02]}  e5 {[%clk 0:02:40]} 14. Bg3 {[%clk 0:01:59]}  Qe7 {[%clk 0:02:40]} 15. Be2 {[%clk 0:01:54]}  f5 {[%clk 0:02:39]} 16. Bf2 {[%clk 0:01:50]}  Rae8 {[%clk 0:02:38]} 17. Qd2 {[%clk 0:01:31]}  c5 {[%clk 0:02:20]} 18. d5 {[%clk 0:01:27]}  f4 {[%clk 0:02:18]} 19. e4 {[%clk 0:01:21]}  Nf6 {[%clk 0:02:17]} 20. b4 {[%clk 0:01:10]}  Bc8 {[%clk 0:02:17]} 21. Qb2 {[%clk 0:01:03]}  Bd7 {[%clk 0:02:17]} 22. Kd2 {[%clk 0:01:03]}  Rb8 {[%clk 0:02:13]} 23. Rb1 {[%clk 0:00:56]}  Rbc8 {[%clk 0:02:11]} 24. a4 {[%clk 0:00:43]}  Nh5 {[%clk 0:02:01]} 25. b5 {[%clk 0:00:30]}  Ng3 {[%clk 0:02:01]} 26. Rh2 {[%clk 0:00:25]}  Ra8 {[%clk 0:01:36]} 27. Kc3 {[%clk 0:00:24]}  a5 {[%clk 0:01:36]} 28. Bd3 {[%clk 0:00:23]}  Rf6 {[%clk 0:01:37]} 29. Qd2 {[%clk 0:00:22]}  Rh6 {[%clk 0:01:36]} 30. Qe1 {[%clk 0:00:21]}  Nh5 {[%clk 0:01:31]} 31. Qd2 {[%clk 0:00:19]}  Rg6 {[%clk 0:01:31]} 32. Rbh1 {[%clk 0:00:17]}  Rf8 {[%clk 0:01:32]} 33. Qe1 {[%clk 0:00:17]}  Qf6 {[%clk 0:01:32]} 34. Bf1 {[%clk 0:00:16]}  Ng3 {[%clk 0:01:32]} 35. Bxg3 {[%clk 0:00:16]}  fxg3 {[%clk 0:01:32]} 36. Rh3 {[%clk 0:00:16]}  Bxh3 {[%clk 0:01:31]} 37. Rxh3 {[%clk 0:00:17]}  Qf4 {[%clk 0:01:32]} 38. Bd3 {[%clk 0:00:17]}  Rh6 {[%clk 0:01:22]} 39. Qh1 {[%clk 0:00:16]}  Qe3 {[%clk 0:01:13]} 40. Rxg3 {[%clk 0:00:16]}  Qd4+ {[%clk 0:01:13]} 41. Kd2 {[%clk 0:00:14]}  Qf2+ {[%clk 0:01:13]} 0-1


[Site "https://www.chess.com"]

[Event "Titled Tuesday Blitz April 25 Early 2023"]
[White "Brunner, Nicolas"]
[Black "Steinberg, Nitzan"]
[WhiteFideId "620246"]
[BlackFideId "2801795"]
[WhiteElo "2327"]
[BlackElo "2486"]
[Result "0-1"]
[Round "05"]
[TimeControl "180+2"]
[Date "2023.04.25"]
[WhiteClock "0:00:04"]
[BlackClock "0:00:21"]

1. Nf3 {[%clk 0:03:00]}  Nf6 {[%clk 0:02:58]} 2. g3 {[%clk 0:03:01]}  g6 {[%clk 0:02:59]} 3. Bg2 {[%clk 0:03:01]}  Bg7 {[%clk 0:03:00]} 4. O-O {[%clk 0:03:02]}  O-O {[%clk 0:03:01]} 5. d4 {[%clk 0:03:02]}  c5 {[%clk 0:03:01]} 6. d5 {[%clk 0:03:01]}  d6 {[%clk 0:03:01]} 7. c4 {[%clk 0:03:01]}  b5 {[%clk 0:03:02]} 8. cxb5 {[%clk 0:03:01]}  a6 {[%clk 0:03:02]} 9. bxa6 {[%clk 0:03:00]}  Bxa6 {[%clk 0:03:01]} 10. Nc3 {[%clk 0:03:00]}  Nbd7 {[%clk 0:03:00]} 11. Rb1 {[%clk 0:03:00]}  Nb6 {[%clk 0:03:00]} 12. b3 {[%clk 0:02:59]}  Bb7 {[%clk 0:02:55]} 13. e4 {[%clk 0:02:58]}  Nfd7 {[%clk 0:02:50]} 14. Qc2 {[%clk 0:02:55]}  Ba6 {[%clk 0:02:43]} 15. Rd1 {[%clk 0:02:53]}  Qb8 {[%clk 0:02:43]} 16. Bg5 {[%clk 0:02:46]}  Re8 {[%clk 0:02:39]} 17. a4 {[%clk 0:02:44]}  Qa7 {[%clk 0:02:32]} 18. Bf1 {[%clk 0:02:42]}  Bxf1 {[%clk 0:02:29]} 19. Kxf1 {[%clk 0:02:41]}  c4 {[%clk 0:02:26]} 20. Nb5 {[%clk 0:02:19]}  cxb3 {[%clk 0:02:16]} 21. Qxb3 {[%clk 0:02:19]}  Qa6 {[%clk 0:02:06]} 22. Kg2 {[%clk 0:02:12]}  Rac8 {[%clk 0:02:02]} 23. Nfd4 {[%clk 0:02:01]}  h6 {[%clk 0:01:53]} 24. Bd2 {[%clk 0:01:40]}  Nxa4 {[%clk 0:01:38]} 25. Ra1 {[%clk 0:01:26]}  Ndc5 {[%clk 0:01:33]} 26. Qf3 {[%clk 0:01:26]}  Qb7 {[%clk 0:01:24]} 27. Rdb1 {[%clk 0:01:23]}  Qd7 {[%clk 0:01:24]} 28. Rb4 {[%clk 0:00:45]}  Ra8 {[%clk 0:01:23]} 29. Rab1 {[%clk 0:00:43]}  Rec8 {[%clk 0:01:19]} 30. Nc6 {[%clk 0:00:43]}  e6 {[%clk 0:01:13]} 31. Bf4 {[%clk 0:00:38]}  e5 {[%clk 0:01:10]} 32. Be3 {[%clk 0:00:35]}  f5 {[%clk 0:01:09]} 33. exf5 {[%clk 0:00:34]}  gxf5 {[%clk 0:01:09]} 34. Qh5 {[%clk 0:00:25]}  f4 {[%clk 0:01:01]} 35. gxf4 {[%clk 0:00:24]}  Nd3 {[%clk 0:01:02]} 36. Re4 {[%clk 0:00:14]}  Nac5 {[%clk 0:00:55]} 37. Rc4 {[%clk 0:00:12]}  exf4 {[%clk 0:00:48]} 38. Bxf4 {[%clk 0:00:12]}  Ra2 {[%clk 0:00:48]} 39. Bg3 {[%clk 0:00:11]}  Rf8 {[%clk 0:00:48]} 40. Rf1 {[%clk 0:00:10]}  Kh8 {[%clk 0:00:27]} 41. Nxd6 {[%clk 0:00:10]}  Nxf2 {[%clk 0:00:21]} 42. Bxf2 {[%clk 0:00:09]}  Qxd6 {[%clk 0:00:21]} 43. Rh4 {[%clk 0:00:04]}  Nd3 {[%clk 0:00:21]} 0-1


[Site "https://www.chess.com"]

[Event "Titled Tuesday Blitz April 25 Early 2023"]
[White "Berezin, Viktor"]
[Black "Grigorov, Grigor"]
[WhiteFideId "14107872"]
[BlackFideId "2907313"]
[WhiteElo "2310"]
[BlackElo "2510"]
[Result "1/2-1/2"]
[Round "05"]
[TimeControl "180+2"]
[Date "2023.04.25"]
[WhiteClock "0:00:11"]
[BlackClock "0:00:14"]

1. d4 {[%clk 0:02:55]}  Nf6 {[%clk 0:02:58]} 2. Nf3 {[%clk 0:02:55]}  e6 {[%clk 0:02:57]} 3. g3 {[%clk 0:02:54]}  b6 {[%clk 0:02:57]} 4. Bg2 {[%clk 0:02:53]}  Bb7 {[%clk 0:02:57]} 5. O-O {[%clk 0:02:53]}  Be7 {[%clk 0:02:57]} 6. c4 {[%clk 0:02:54]}  O-O {[%clk 0:02:57]} 7. Nc3 {[%clk 0:02:55]}  Ne4 {[%clk 0:02:57]} 8. Qc2 {[%clk 0:02:55]}  Nxc3 {[%clk 0:02:55]} 9. Qxc3 {[%clk 0:02:56]}  d6 {[%clk 0:02:56]} 10. Rd1 {[%clk 0:02:54]}  Be4 {[%clk 0:02:51]} 11. b4 {[%clk 0:02:49]}  f5 {[%clk 0:02:44]} 12. Bb2 {[%clk 0:02:49]}  Bf6 {[%clk 0:02:44]} 13. Qb3 {[%clk 0:02:49]}  Qe7 {[%clk 0:02:35]} 14. Bh3 {[%clk 0:02:40]}  g5 {[%clk 0:02:17]} 15. Bg2 {[%clk 0:02:35]}  Nd7 {[%clk 0:02:13]} 16. Ne1 {[%clk 0:02:33]}  Bxg2 {[%clk 0:02:10]} 17. Nxg2 {[%clk 0:02:34]}  Rae8 {[%clk 0:01:58]} 18. a4 {[%clk 0:02:21]}  Qf7 {[%clk 0:01:54]} 19. a5 {[%clk 0:02:20]}  e5 {[%clk 0:01:50]} 20. axb6 {[%clk 0:02:16]}  axb6 {[%clk 0:01:49]} 21. dxe5 {[%clk 0:02:11]}  Bxe5 {[%clk 0:01:45]} 22. Ra7 {[%clk 0:01:51]}  Bxb2 {[%clk 0:01:43]} 23. Qxb2 {[%clk 0:01:51]}  Ne5 {[%clk 0:01:43]} 24. c5 {[%clk 0:01:41]}  dxc5 {[%clk 0:01:22]} 25. bxc5 {[%clk 0:01:42]}  bxc5 {[%clk 0:01:22]} 26. Qa3 {[%clk 0:01:09]}  c4 {[%clk 0:00:52]} 27. Qc5 {[%clk 0:01:01]}  Re7 {[%clk 0:00:52]} 28. Ne3 {[%clk 0:00:36]}  f4 {[%clk 0:00:41]} 29. Nd5 {[%clk 0:00:36]}  Rd7 {[%clk 0:00:40]} 30. Rxc7 {[%clk 0:00:34]}  fxg3 {[%clk 0:00:30]} 31. hxg3 {[%clk 0:00:30]}  Nd3 {[%clk 0:00:16]} 32. exd3 {[%clk 0:00:12]}  Qxd5 {[%clk 0:00:17]} 33. Qxd5+ {[%clk 0:00:11]}  Rxd5 {[%clk 0:00:17]} 34. Rxc4 {[%clk 0:00:12]}  Rf3 {[%clk 0:00:17]} 35. Kg2 {[%clk 0:00:10]}  Rfxd3 {[%clk 0:00:16]} 36. Rxd3 {[%clk 0:00:11]}  Rxd3 {[%clk 0:00:17]} 37. Rc6 {[%clk 0:00:11]}  Kg7 {[%clk 0:00:17]} 38. Rb6 {[%clk 0:00:11]}  Rd7 {[%clk 0:00:16]} 39. Rc6 {[%clk 0:00:11]}  Rd3 {[%clk 0:00:14]} 1/2-1/2


[Site "https://www.chess.com"]

[Event "Titled Tuesday Blitz April 25 Early 2023"]
[White "Odegov, Artem"]
[Black "Kushko, Dmitriy"]
[WhiteFideId "34183644"]
[BlackFideId "14162261"]
[WhiteElo "2300"]
[BlackElo "2230"]
[Result "0-1"]
[Round "05"]
[TimeControl "180+2"]
[Date "2023.04.25"]
[WhiteClock "0:00:05"]
[BlackClock "0:00:08"]

1. d4 {[%clk 0:03:00]}  g6 {[%clk 0:02:59]} 2. c4 {[%clk 0:03:00]}  Bg7 {[%clk 0:03:00]} 3. Nc3 {[%clk 0:03:00]}  d6 {[%clk 0:03:00]} 4. e4 {[%clk 0:02:59]}  e5 {[%clk 0:03:00]} 5. Nf3 {[%clk 0:02:56]}  Bg4 {[%clk 0:02:55]} 6. d5 {[%clk 0:02:53]}  a5 {[%clk 0:02:52]} 7. Be2 {[%clk 0:02:53]}  Na6 {[%clk 0:02:49]} 8. Ng1 {[%clk 0:02:52]}  Bd7 {[%clk 0:02:49]} 9. Be3 {[%clk 0:02:52]}  f5 {[%clk 0:02:47]} 10. exf5 {[%clk 0:02:34]}  gxf5 {[%clk 0:02:48]} 11. Bh5+ {[%clk 0:02:20]}  Kf8 {[%clk 0:02:48]} 12. Nge2 {[%clk 0:02:16]}  Nf6 {[%clk 0:02:46]} 13. Nc1 {[%clk 0:02:05]}  f4 {[%clk 0:02:40]} 14. Bd2 {[%clk 0:02:04]}  Nc5 {[%clk 0:02:40]} 15. O-O {[%clk 0:02:00]}  Nxh5 {[%clk 0:02:35]} 16. Qxh5 {[%clk 0:02:01]}  Qe8 {[%clk 0:02:35]} 17. Qxe8+ {[%clk 0:01:38]}  Kxe8 {[%clk 0:02:36]} 18. Nb3 {[%clk 0:01:36]}  b6 {[%clk 0:02:18]} 19. Nxc5 {[%clk 0:01:31]}  bxc5 {[%clk 0:02:18]} 20. a4 {[%clk 0:01:31]}  Kd8 {[%clk 0:02:00]} 21. Rfe1 {[%clk 0:01:25]}  Kc8 {[%clk 0:01:56]} 22. Ne4 {[%clk 0:01:08]}  Kb7 {[%clk 0:01:52]} 23. Bc3 {[%clk 0:01:08]}  Ka6 {[%clk 0:01:39]} 24. f3 {[%clk 0:01:02]}  h5 {[%clk 0:01:37]} 25. Kf2 {[%clk 0:00:58]}  Rhg8 {[%clk 0:01:31]} 26. b3 {[%clk 0:00:46]}  Bh8 {[%clk 0:01:30]} 27. Rab1 {[%clk 0:00:45]}  Rg6 {[%clk 0:01:29]} 28. Bd2 {[%clk 0:00:43]}  h4 {[%clk 0:01:16]} 29. h3 {[%clk 0:00:41]}  Rag8 {[%clk 0:01:12]} 30. Rg1 {[%clk 0:00:39]}  Bf5 {[%clk 0:01:03]} 31. Rbe1 {[%clk 0:00:37]}  Rb8 {[%clk 0:00:55]} 32. Rgf1 {[%clk 0:00:03]}  Bg7 {[%clk 0:00:38]} 33. Rb1 {[%clk 0:00:02]}  Bxe4 {[%clk 0:00:37]} 34. fxe4 {[%clk 0:00:03]}  Rg3 {[%clk 0:00:38]} 35. Ke2 {[%clk 0:00:03]}  Rbxb3 {[%clk 0:00:36]} 36. Rxb3 {[%clk 0:00:04]}  Rxb3 {[%clk 0:00:37]} 37. Rc1 {[%clk 0:00:02]}  Rg3 {[%clk 0:00:23]} 38. Kf2 {[%clk 0:00:01]}  Ra3 {[%clk 0:00:23]} 39. Rb1 {[%clk 0:00:01]}  Rxa4 {[%clk 0:00:17]} 40. Rb5 {[%clk 0:00:01]}  Ra2 {[%clk 0:00:12]} 41. Ke1 {[%clk 0:00:02]}  Ra1+ {[%clk 0:00:11]} 42. Ke2 {[%clk 0:00:02]}  Bf6 {[%clk 0:00:12]} 43. Kd3 {[%clk 0:00:02]}  Ra3+ {[%clk 0:00:12]} 44. Bc3 {[%clk 0:00:02]}  Bg5 {[%clk 0:00:11]} 45. Rb8 {[%clk 0:00:01]}  Ra2 {[%clk 0:00:09]} 46. Bb2 {[%clk 0:00:02]}  a4 {[%clk 0:00:09]} 47. Bc3 {[%clk 0:00:02]}  Rxg2 {[%clk 0:00:09]} 48. Ra8+ {[%clk 0:00:02]}  Kb7 {[%clk 0:00:09]} 49. Rxa4 {[%clk 0:00:03]}  f3 {[%clk 0:00:09]} 50. Ra1 {[%clk 0:00:02]}  f2 {[%clk 0:00:09]} 51. Rf1 {[%clk 0:00:02]}  Bf4 {[%clk 0:00:09]} 52. Ke2 {[%clk 0:00:02]}  Bg3 {[%clk 0:00:09]} 53. Bd2 {[%clk 0:00:03]}  Rh2 {[%clk 0:00:08]} 54. Be3 {[%clk 0:00:03]}  Rxh3 {[%clk 0:00:08]} 55. Rb1+ {[%clk 0:00:02]}  Kc8 {[%clk 0:00:08]} 56. Rf1 {[%clk 0:00:01]}  Rh2 {[%clk 0:00:08]} 57. Rd1 {[%clk 0:00:01]}  Kd7 {[%clk 0:00:09]} 58. Rf1 {[%clk 0:00:02]}  c6 {[%clk 0:00:08]} 59. Kf3 {[%clk 0:00:02]}  cxd5 {[%clk 0:00:08]} 60. exd5 {[%clk 0:00:03]}  Ke7 {[%clk 0:00:08]} 61. Kg4 {[%clk 0:00:03]}  Kf6 {[%clk 0:00:08]} 62. Bg5+ {[%clk 0:00:03]}  Kg6 {[%clk 0:00:09]} 63. Be3 {[%clk 0:00:04]}  e4 {[%clk 0:00:09]} 64. Bg5 {[%clk 0:00:04]}  Rg2 {[%clk 0:00:09]} 65. Kh3 {[%clk 0:00:04]}  Rg1 {[%clk 0:00:08]} 66. Kg4 {[%clk 0:00:05]}  Rxf1 {[%clk 0:00:08]} 0-1


[Site "https://www.chess.com"]